bitfinex-derivatives/quotes_ETHF0:USTF0_20250903
["timestamp","ask_amount","ask_price","bid_price","bid_amount"]
[1756940543352,0.226,4472.6,4472.5,0.8114]
[1756940544853,0.4226,4472.6,4472.5,0.8114]
[1756940549870,0.96701753,4472.6,4472.5,0.8114]
[1756940550462,0.4226,4472.6,4472.5,0.8114]
[1756940551266,0.96741972,4472.6,4472.5,0.8114]
[1756940552468,0.77081972,4472.6,4472.5,0.8114]
[1756940553269,0.1117,4472.8,4472.5,0.8114]
[1756940553471,0.1117,4472.8,4472.7,1.49972801]
[1756940554359,0.29088937,4472.8,4472.7,0.6896]
[1756940554567,0.69458937,4472.8,4472.7,0.6896]
[1756940554765,0.99448937,4472.8,4472.7,0.6896]
[1756940554966,0.69458937,4472.8,4472.7,0.6896]
[1756940557371,0.51688937,4472.8,4472.7,0.6896]
[1756940557575,0.71348937,4472.8,4472.7,0.6896]
[1756940557765,1.22048937,4472.8,4472.7,0.6896]
[1756940558169,0.92058937,4472.8,4472.7,0.6896]
[1756940559079,1.46633461,4472.8,4472.7,0.6896]
[1756940559276,1.35463461,4472.8,4472.7,0.6896]
[1756940559479,0.80888937,4472.8,4472.7,0.6896]
[1756940559672,1.10878937,4472.8,4472.7,0.6896]
[1756940560275,1.65462643,4472.8,4472.7,0.6896]
[1756940561976,2.46475444,4472.8,4472.7,0.3003]
[1756940562170,2.46475444,4472.8,4472.3,3.2078]
[1756940562171,0.6984,4472.4,4472.3,3.4985]
[1756940562378,1.64972154,4472.4,4471.9,0.2907]
[1756940562682,0.3003,4471.9,4471.4,3.2078]
[1756940562883,0.6984,4471.5,4471.4,3.6887]
[1756940563083,0.87758937,4471.5,4471.4,3.6887]
[1756940563374,0.6984,4471.4,4471.3,4.9999]
[1756940563579,1.64996957,4471.4,4471.3,4.9999]
[1756940563981,1.64996957,4471.4,4470.6,0.2907]
[1756940564281,0.2053,4470.7,4470.6,0.6898]
[1756940564578,0.61048937,4470.7,4470.6,0.6898]
[1756940564880,1.15686957,4470.7,4470.6,0.6898]
[1756940566179,0.61048937,4470.7,4470.6,0.6898]
[1756940566785,1.15613162,4470.7,4470.6,0.6898]
[1756940566980,1.34893162,4470.7,4470.6,0.6898]
[1756940567177,0.80328937,4470.7,4470.6,0.6898]
[1756940570984,1.10358937,4470.7,4470.6,0.6898]
[1756940571183,0.80328937,4470.7,4470.6,0.6898]
[1756940571584,0.80302254,4470.7,4470.6,0.6898]
[1756940574479,0.40492254,4470.7,4470.6,0.6898]
[1756940575279,0.61022254,4470.7,4470.6,0.6898]
[1756940575786,0.40492254,4470.7,4470.6,0.6898]
[1756940577081,0.61022254,4470.7,4470.6,0.6898]
[1756940579987,0.80302254,4470.7,4470.6,0.6898]
[1756940580184,1.91345055,4470.7,4470.6,0.2907]
[1756940580387,0.3981,4470.0,4469.9,0.4809]
[1756940580583,1.10332254,4470.0,4469.9,0.4809]
[1756940581188,0.80302254,4470.0,4469.7,3.2078]
[1756940581388,0.87732254,4469.9,4469.7,3.2078]
[1756940581792,0.87732254,4469.9,4469.8,0.2907]
[1756940581990,0.87732254,4469.9,4469.8,0.4809]
[1756940582484,0.57702254,4469.9,4469.7,3.2078]
[1756940582692,0.87732254,4469.8,4469.7,3.2078]
[1756940582891,0.87732254,4469.8,4469.7,3.6887]
[1756940583698,1.68745055,4469.8,4469.7,0.2907]
[1756940583886,0.3981,4469.6,4469.5,0.2907]
[1756940584194,0.3981,4469.6,4469.5,0.4809]
[1756940584195,0.87732254,4469.6,4469.5,0.4809]
[1756940584395,0.87690023,4469.6,4469.5,0.4809]
[1756940584592,0.3003,4469.5,4469.4,4.9999]
[1756940584794,1.72212824,4469.5,4469.2,3.2078]
[1756940584994,0.6984,4469.3,4469.2,3.4985]
[1756940585296,0.87822761,4469.3,4469.2,3.6887]
[1756940586091,0.87822761,4469.3,4469.2,0.2907]
[1756940586291,0.87822761,4469.3,4469.0,0.1234]
[1756940586593,0.87822761,4469.2,4469.1,0.2907]
[1756940586995,1.68835562,4469.2,4469.1,0.2907]
[1756940587892,1.68835562,4469.2,4469.1,0.4809]
[1756940590097,0.3981,4468.9,4468.8,0.2907]
[1756940590297,0.87822761,4468.9,4468.8,0.4809]
[1756940590500,1.38805562,4468.9,4468.8,0.6898]
[1756940591195,1.38833208,4468.9,4468.8,0.6898]
[1756940593101,1.68463208,4468.9,4468.8,0.6898]
[1756940594499,1.38833208,4468.9,4468.8,0.6898]
[1756940594802,1.38845975,4468.9,4468.8,0.6898]
[1756940594998,1.68475975,4468.9,4468.8,0.6898]
[1756940595699,0.38553174,4468.9,4468.8,0.6898]
[1756940595905,0.40623174,4468.9,4468.8,0.6898]
[1756940596402,0.79983174,4468.9,4468.8,0.6898]
[1756940596600,1.09613174,4468.9,4468.8,0.6898]
[1756940597003,0.79983174,4468.9,4468.8,0.6898]
[1756940600103,0.60763174,4468.9,4468.8,0.6898]
[1756940603108,1.15242944,4468.9,4468.8,0.6898]
[1756940604107,0.3936,4468.7,4468.6,3.4027]
[1756940604412,2.22516248,4468.7,4468.6,0.4786]
[1756940605300,2.22516248,4468.7,4468.6,0.6827]
[1756940607498,2.22516248,4468.7,4468.6,0.4786]
[1756940607704,1.92886248,4468.7,4468.1,0.2837]
[1756940607910,0.3936,4468.2,4468.1,0.6827]
[1756940608106,0.18023174,4468.2,4468.1,0.6827]
[1756940608614,0.226,4468.4,4468.2,0.2837]
[1756940608813,1.11971902,4468.3,4468.2,0.6827]
[1756940609015,0.72611902,4468.3,4468.2,0.6827]
[1756940610506,0.92751902,4468.3,4468.2,0.6827]
[1756940610911,1.11971902,4468.3,4468.2,0.6827]
[1756940611715,0.72611902,4468.3,4468.2,0.6827]
[1756940613012,0.92751902,4468.3,4468.2,0.6827]
[1756940615116,0.72611902,4468.3,4468.2,0.6827]
[1756940616817,0.18059861,4468.3,4468.2,0.6827]
[1756940617408,0.1118,4468.5,4468.3,0.2837]
[1756940617804,0.1118,4468.5,4468.4,0.399]
[1756940618005,0.1118,4468.5,4468.4,3.8905]
[1756940618905,0.65834301,4468.5,4468.4,3.8905]
[1756940619110,0.1118,4468.5,4468.4,3.8905]
[1756940626422,0.65825411,4468.5,4468.4,3.8905]
[1756940626625,0.1118,4468.5,4468.4,8.34029]
[1756940626819,8.9905,4469.7,4469.6,0.3915]
[1756940627022,9.53701995,4469.7,4469.6,0.6958]
[1756940627225,0.54651995,4469.7,4469.6,0.6958]
[1756940630427,35.5436,4470.3,4469.7,0.3043]
[1756940630625,0.92979138,4470.2,4470.1,0.6958]
[1756940630926,0.74109138,4470.2,4470.1,0.6958]
[1756940631221,0.54459138,4470.2,4470.1,0.6958]
[1756940632123,0.226,4470.4,4470.0,0.1219]
[1756940632124,0.3378,4470.8,4470.5,0.1219]
[1756940632322,0.3083,4470.8,4470.7,0.6958]
[1756940633120,0.85241331,4470.8,4470.7,0.6958]
[1756940633318,0.74061331,4470.8,4470.7,0.6958]
[1756940633523,0.92931331,4470.8,4470.7,0.6958]
[1756940633724,1.21971331,4470.8,4470.7,0.6958]
[1756940634321,0.6756,4470.8,4470.7,0.6958]
[1756940637619,0.3852,4470.8,4470.7,0.6958]
[1756940638623,3.61,4471.4,4470.8,0.3043]
[1756940638825,3.61,4471.4,4471.2,0.6958]
[1756940638826,0.1118,4471.4,4471.2,0.6958]
[1756940639024,0.4225,4471.6,4471.5,0.5134]
[1756940639225,0.96557858,4471.6,4471.5,0.8177]
[1756940640127,1.44467858,4471.6,4471.5,0.8177]
[1756940641020,1.21867858,4471.6,4471.5,0.8177]
[1756940641217,0.3852,4471.6,4471.5,0.8177]
[1756940641427,0.1965,4472.0,4471.9,0.6958]
[1756940641623,0.226,4472.3,4472.0,0.8177]
[1756940641823,0.4225,4472.3,4472.2,0.3915]
[1756940642127,0.4225,4472.3,4472.2,0.6958]
[1756940643532,0.1117,4472.8,4472.5,0.1219]
[1756940643729,0.3082,4472.8,4472.7,0.6958]
[1756940643928,0.6112,4472.8,4472.7,0.6958]
[1756940646026,0.9016,4472.8,4472.5,0.4262]
[1756940646332,0.6756,4472.6,4472.5,0.3043]
[1756940646724,0.6756,4472.6,4472.5,0.5046]
[1756940647126,0.3852,4472.6,4472.5,0.8177]
[1756940648133,0.6756,4472.6,4472.5,0.8177]
[1756940648634,0.3852,4472.6,4472.5,0.8177]
[1756940650334,3.2078,4473.0,4472.6,0.3043]
[1756940650536,0.226,4472.9,4472.8,0.6958]
[1756940652837,0.4225,4472.9,4472.8,0.6958]
[1756940653135,0.9251,4472.9,4472.5,0.1219]
[1756940653340,0.226,4472.9,4472.8,0.1892]
[1756940653536,0.226,4472.9,4472.8,0.3922]
[1756940653736,0.4147,4472.9,4472.8,0.3922]
[1756940653934,0.4147,4472.9,4472.8,0.6963]
[1756940654335,0.9173,4472.9,4472.8,0.6963]
[1756940654737,0.3104,4472.8,4472.2,0.3041]
[1756940654935,0.6913,4472.3,4472.2,0.3041]
[1756940655134,0.9173,4472.3,4472.2,0.4933]
[1756940655338,0.6069,4472.3,4472.2,0.6963]
[1756940658149,1.15001334,4472.3,4472.2,0.6963]
[1756940659143,0.54311334,4472.3,4472.2,0.6963]
[1756940659449,3.2078,4472.8,4472.7,0.6963]
[1756940659450,3.3965,4472.8,4472.7,0.6963]
[1756940659651,4.35819386,4472.8,4472.7,0.6963]
[1756940660251,4.66859386,4472.8,4472.7,0.6963]
[1756940660649,4.66859386,4472.8,4472.7,0.4933]
[1756940662452,4.66859386,4472.8,4472.3,0.3041]
[1756940662654,0.6913,4472.4,4472.3,0.3041]
[1756940662854,1.45979386,4472.4,4472.3,0.3041]
[1756940663456,1.45979386,4472.4,4472.3,0.4933]
[1756940663650,1.45979386,4472.4,4472.3,0.3041]
[1756940663850,1.45979386,4472.4,4472.3,0.4933]
[1756940665257,1.14939386,4472.4,4472.3,0.6963]
[1756940668157,0.95719386,4472.4,4472.3,0.6963]
[1756940670151,0.54349386,4472.4,4472.3,0.6963]
[1756940670354,0.225,4472.4,4472.3,0.3922]
[1756940670657,0.76849386,4472.4,4472.3,0.3922]
[1756940670853,0.76849386,4472.4,4472.3,0.6963]
[1756940674056,0.76849386,4472.4,4472.3,3.9041]
[1756940677066,0.95719386,4472.4,4472.3,3.9041]
[1756940678065,0.76849386,4472.4,4472.3,3.9041]
[1756940683074,0.54349386,4472.4,4472.3,3.9041]
[1756940683269,0.1117,4472.6,4472.3,8.934019]
[1756940683270,0.54349386,4472.5,4472.3,8.934019]
[1756940683468,0.1117,4472.6,4472.5,0.7997]
[1756940684174,0.1117,4472.6,4472.5,1.0247]
[1756940685366,0.2842,4473.7,4472.6,0.3003]
[1756940685578,0.2842,4473.7,4472.5,0.3383]
[1756940685579,0.9133,4473.7,4473.6,0.6864]
[1756940685762,1.45939921,4473.7,4473.6,0.6864]
[1756940685968,1.23439921,4473.7,4473.6,0.6864]
[1756940688977,0.95019921,4473.7,4473.6,0.6864]
[1756940689278,0.75179921,4473.7,4473.6,0.6864]
[1756940689977,0.54609921,4473.7,4473.6,0.6864]
[1756940691372,0.75179921,4473.7,4473.6,0.6864]
[1756940691580,1.23439921,4473.7,4473.6,0.6864]
[1756940696280,1.23439921,4473.7,4473.2,4.9999]
[1756940696482,0.6883,4473.4,4473.3,0.3003]
[1756940697067,0.6883,4473.4,4473.3,0.491]
[1756940698694,0.6883,4473.4,4473.3,0.3003]
[1756940698881,1.23296965,4473.4,4473.3,0.3003]
[1756940699474,1.23296965,4473.4,4473.3,0.491]
[1756940700086,1.23296965,4473.4,4473.3,0.6864]
[1756940705690,0.4041,4472.8,4472.7,4.9999]
[1756940705987,2.26808865,4472.8,4472.7,4.9999]
[1756940706486,2.26808865,4472.8,4472.3,0.3003]
[1756940706688,0.4041,4472.4,4472.3,0.3003]
[1756940706889,0.9133,4472.4,4472.3,0.3003]
[1756940707078,1.45796965,4472.4,4472.2,0.3003]
[1756940707286,1.23296965,4472.3,4472.2,0.3003]
[1756940708283,0.6883,4472.3,4472.2,0.491]
[1756940709093,1.23323429,4472.3,4472.2,0.491]
[1756940709385,0.6883,4472.3,4472.2,0.491]
[1756940709587,0.6883,4472.3,4470.7,41.20247]
[1756940709588,0.4041,4471.8,4471.7,0.3003]
[1756940709893,0.9133,4471.8,4471.7,0.491]
[1756940710086,1.45809372,4471.8,4471.7,0.491]
[1756940710284,0.9133,4471.8,4471.7,0.491]
[1756940710483,0.9133,4471.8,4471.7,0.6864]
[1756940711094,0.9133,4471.8,4471.7,0.3003]
[1756940711395,0.9133,4471.8,4471.7,0.6864]
[1756940714491,0.9133,4471.8,4471.7,0.491]
[1756940715093,1.723419,4471.8,4471.7,0.3003]
[1756940715287,1.723419,4471.8,4471.7,0.5088]
[1756940715590,0.7109,4471.5,4471.4,3.5156]
[1756940715785,1.521019,4471.5,4471.4,3.5156]
[1756940716191,1.521019,4471.5,4471.4,3.2078]
[1756940716382,1.629619,4471.5,4471.4,3.2078]
[1756940716781,0.3048,4471.4,4471.3,4.9999]
[1756940716987,0.9359,4471.4,4471.3,4.9999]
[1756940718390,0.4292,4471.4,4471.3,5.714]
[1756940718697,0.9359,4471.4,4471.3,5.714]
[1756940721692,0.4292,4471.4,4471.3,5.714]
[1756940722695,0.9359,4471.4,4471.3,5.714]
[1756940725797,0.6311,4471.4,4471.3,5.714]
[1756940726393,0.9359,4471.4,4471.3,5.714]
[1756940727793,0.9359,4471.4,4471.3,5.5162]
[1756940728000,8.91153885,4471.4,4471.3,4.9999]
[1756940729801,8.68788885,4471.4,4470.8,0.3078]
[1756940729997,1.216219,4470.9,4470.8,0.3078]
[1756940730192,2.29120785,4470.9,4470.8,0.5163]
[1756940730803,2.29120785,4470.9,4470.8,0.7141]
[1756940731204,1.747019,4470.9,4470.8,0.7141]
[1756940731500,2.29123655,4470.9,4470.8,0.7141]
[1756940732796,1.58033655,4470.9,4470.8,0.7141]
[1756940733007,0.226,4470.9,4470.8,0.7141]
[1756940733206,0.77049416,4470.9,4470.8,0.7141]
[1756940733693,0.97469416,4470.9,4470.8,0.7141]
[1756940736708,0.54449416,4470.9,4470.8,0.7141]
[1756940736908,0.77049416,4470.9,4470.8,0.7141]
[1756940737708,0.97469416,4470.9,4470.8,0.7141]
[1756940740706,1.48139416,4470.9,4470.8,0.7141]
[1756940740914,1.48139416,4470.9,4470.8,0.5163]
[1756940742706,1.48139416,4470.9,4470.6,0.2849]
[1756940742914,0.707,4470.5,4470.4,3.4927]
[1756940743105,1.47764284,4470.5,4470.4,3.4927]
[1756940743307,1.57884284,4470.5,4470.0,0.1133]
[1756940743613,1.67998878,4470.3,4470.2,0.4865]
[1756940743806,2.22563162,4470.3,4470.2,0.4865]
[1756940744416,2.22563162,4470.3,4470.2,0.6773]
[1756940746616,1.25264284,4470.3,4470.2,0.6773]
[1756940747419,0.95964284,4470.3,4470.2,0.6773]
[1756940748708,0.54564284,4470.3,4470.2,0.6773]
[1756940751624,0.75264284,4470.3,4470.2,0.6773]
[1756940751920,0.54564284,4470.3,4470.2,0.6773]
[1756940752115,0.54564284,4470.4,4470.2,0.6773]
[1756940752320,0.54564284,4470.4,4470.3,0.2849]
[1756940752520,0.75264284,4470.4,4470.3,0.2849]
[1756940752723,0.75264284,4470.4,4470.3,0.6773]
[1756940756828,0.54564284,4470.4,4470.3,0.6773]
[1756940757824,0.75264284,4470.4,4470.3,0.6773]
[1756940758226,0.54564284,4470.4,4470.3,0.6773]
[1756940758428,0.75264284,4470.4,4470.3,0.6773]
[1756940759134,1.19995412,4471.0,4470.3,0.6773]
[1756940759135,3.4148,4471.4,4471.3,0.3924]
[1756940759434,4.18658683,4471.4,4471.3,0.6773]
[1756940759830,0.54678683,4471.4,4471.3,0.6773]
[1756940760033,0.293,4472.3,4472.2,0.6773]
[1756940760034,0.433,4472.3,4472.2,0.6773]
[1756940760229,1.47994249,4472.3,4472.2,0.6773]
[1756940760424,1.47994249,4472.3,4471.6,3.2078]
[1756940760630,1.47994249,4472.3,4471.7,0.6773]
[1756940760631,0.207,4471.8,4471.7,0.6773]
[1756940760825,0.75394249,4471.8,4471.7,0.6773]
[1756940762130,0.75394249,4471.8,4471.7,5.6772]
[1756940762336,0.207,4471.8,4471.7,5.6772]
[1756940764134,0.5,4472.1,4472.0,0.7949]
[1756940764527,1.04538133,4472.1,4472.0,0.7949]
[1756940764927,0.75238133,4472.1,4472.0,0.7949]
[1756940765434,1.25238133,4472.1,4472.0,0.7949]
[1756940767336,0.707,4472.1,4472.0,0.7949]
[1756940768134,0.414,4472.1,4472.0,0.7949]
[1756940769136,0.707,4472.1,4472.0,0.7949]
[1756940772537,0.414,4472.1,4472.0,0.7949]
[1756940773838,0.207,4472.1,4472.0,0.7949]
[1756940774531,0.685,4472.1,4472.0,0.7949]
[1756940777236,0.685,4472.1,4472.0,0.2849]
[1756940777430,0.2896,4472.0,4471.8,0.2976]
[1756940777638,0.2896,4471.8,4471.7,4.9999]
[1756940777836,0.6739,4471.8,4471.7,4.9999]
[1756940778038,0.6739,4471.8,4471.7,5.2975]
[1756940778242,0.6739,4471.8,4471.7,0.4941]
[1756940779343,0.6739,4471.8,4471.7,0.6893]
[1756940779743,5.35728878,4471.8,4471.3,0.2976]
[1756940780036,0.6739,4471.2,4471.1,4.19800001]
[1756940780237,4.65056314,4471.2,4471.1,4.05850001]
[1756940780439,4.87422315,4471.2,4469.5,0.1246]
[1756940780639,0.1187,4469.5,4468.7,3.2078]
[1756940780942,0.3843,4468.8,4468.7,3.5995]
[1756940781139,0.6739,4468.8,4468.7,3.5995]
[1756940781346,0.6739,4468.8,4468.7,7.658]
[1756940782042,0.6739,4468.8,4468.7,0.3917]
[1756940782845,0.6739,4468.8,4468.7,0.6893]
[1756940783848,0.8999,4468.8,4468.7,0.6893]
[1756940784046,0.8999,4468.8,4468.7,0.3917]
[1756940784443,0.8999,4468.8,4468.7,0.6893]
[1756940785748,0.8999,4468.8,4468.7,0.3917]
[1756940787150,0.8999,4468.8,4468.7,0.6893]
[1756940799059,0.8999,4468.8,4468.7,0.3917]
[1756940799957,0.8999,4468.8,4468.7,0.6893]
[1756940802655,0.8999,4468.8,4468.7,0.1965]
[1756940803650,0.8999,4468.8,4468.7,0.4975]
[1756940805064,0.8999,4468.8,4468.7,0.6915]
[1756940808260,1.44406592,4468.8,4468.7,0.6915]
[1756940808465,0.76916592,4468.8,4468.7,0.6915]
[1756940808671,1.26806592,4468.8,4468.7,0.6915]
[1756940809165,1.47156592,4468.8,4468.7,0.6915]
[1756940810169,2.28310127,4468.8,4468.7,0.6915]
[1756940812370,2.28310127,4468.8,4468.7,0.1965]
[1756940813071,2.28310127,4468.8,4468.7,0.6915]
[1756940814368,0.7024,4468.3,4468.2,3.2078]
[1756940814580,0.7024,4468.2,4468.1,4.0585]
[1756940814770,1.24656592,4468.2,4468.1,4.0585]
[1756940816367,1.24656592,4468.2,4468.1,4.2613]
[1756940816565,1.24656592,4468.2,4468.1,4.5623]
[1756940817165,1.24656592,4468.2,4468.1,4.7563]
[1756940826478,1.35570127,4468.2,4468.1,4.7563]
[1756940827070,1.65770127,4468.2,4468.1,4.7563]
[1756940827270,1.85460127,4468.2,4468.1,4.7563]
[1756940829774,0.54416592,4468.2,4468.1,4.7563]
[1756940830174,0.84616592,4468.2,4468.1,4.7563]
[1756940830576,1.04306592,4468.2,4468.1,4.7563]
[1756940830871,0.54416592,4468.2,4468.1,4.7563]
[1756940831981,0.54416592,4468.2,4468.1,0.6978]
[1756940833375,1.02216592,4468.2,4468.1,0.6978]
[1756940833779,0.54416592,4468.2,4468.1,0.6978]
[1756940834583,0.83086592,4468.2,4468.1,0.6978]
[1756940834783,1.02216592,4468.2,4468.1,0.6978]
[1756940835286,0.7982,4468.0,4467.9,4.2585]
[1756940835472,2.15390127,4468.0,4467.9,4.0585]
[1756940836073,2.15390127,4468.0,4467.2,0.3032]
[1756940836282,1.28953535,4467.3,4467.2,0.6917]
[1756940836477,2.25870127,4467.3,4467.2,0.6917]
[1756940836881,2.25870127,4467.3,4467.2,0.2]
[1756940837886,2.25870127,4467.3,4466.9,3.511]
[1756940838082,0.3913,4467.0,4466.9,3.711]
[1756940838290,1.71453535,4467.0,4466.9,3.8995]
[1756940838486,2.25870127,4467.0,4466.9,3.8995]
[1756940838686,2.37890127,4467.0,4466.9,3.8995]
[1756940839083,2.25870127,4467.0,4466.9,3.8995]
[1756940839579,1.77200127,4467.0,4466.9,3.8995]
[1756940839779,1.58070127,4467.0,4466.9,3.8995]
[1756940840189,2.05870127,4467.0,4466.9,3.8995]
[1756940841286,2.05832783,4467.0,4466.9,3.8995]
[1756940843785,2.25832783,4467.0,4466.9,3.8995]
[1756940843985,2.37852783,4467.0,4466.9,3.8995]
[1756940845083,2.37852783,4467.0,4466.9,3.5963]
[1756940845276,2.37852783,4467.0,4466.9,3.8995]
[1756940847991,2.37852783,4467.0,4466.9,3.4078]
[1756940848190,2.37852783,4467.0,4466.9,3.2078]
[1756940848382,2.37852783,4467.0,4466.4,4.0585]
[1756940848690,0.678,4466.5,4466.4,0.5032]
[1756940848888,0.903,4466.5,4466.4,0.6917]
[1756940849493,0.225,4466.5,4466.4,0.6917]
[1756940850488,0.225,4466.5,4466.4,1.50323535]
[1756940852095,0.1119,4466.7,4466.6,0.6917]
[1756940852987,0.5899,4466.7,4466.6,0.6917]
[1756940853189,0.1119,4466.7,4466.6,0.6917]
[1756940864304,0.65658775,4466.7,4466.6,0.6917]
[1756940866496,1.14578775,4466.7,4466.6,0.6917]
[1756940868805,0.65658775,4466.7,4466.6,0.6917]
[1756940870005,0.1119,4466.7,4466.6,0.6917]
[1756940872105,0.6011,4466.7,4466.6,0.6917]
[1756940872403,0.8018,4466.7,4466.6,0.6917]
[1756940872599,0.6899,4466.7,4466.6,0.6917]
[1756940872803,1.23486746,4466.7,4466.6,0.6917]
[1756940873005,1.03416746,4466.7,4466.6,0.6917]
[1756940873400,0.54496746,4466.7,4466.6,0.6917]
[1756940873800,0.84036746,4466.7,4466.6,0.6917]
[1756940874000,0.1119,4466.9,4466.6,0.6917]
[1756940874203,0.1119,4466.9,4466.8,3.9084]
[1756940874902,0.6011,4466.9,4466.8,3.9084]
[1756940875103,1.14600166,4466.9,4466.8,3.9084]
[1756940876503,0.85060166,4466.9,4466.8,3.9084]
[1756940876712,0.65680166,4466.9,4466.8,3.9084]
[1756940877307,0.95220166,4466.9,4466.8,3.9084]
[1756940878310,1.14600166,4466.9,4466.8,3.9084]
[1756940878507,1.34670166,4466.9,4466.8,3.9084]
[1756940881307,0.65680166,4466.9,4466.8,3.9084]
[1756940882811,1.14600166,4466.9,4466.8,3.9084]
[1756940885213,0.65680166,4466.9,4466.8,3.9084]
[1756940885611,1.05130166,4466.9,4466.8,3.2078]
[1756940885915,1.05130166,4466.9,4466.4,1.2495]
[1756940885916,0.8121,4466.5,4466.4,1.2495]
[1756940886212,1.35700166,4466.5,4466.2,3.2078]
[1756940886411,0.54490166,4466.4,4466.2,3.2078]
[1756940886606,0.54490166,4466.4,4466.3,0.1903]
[1756940886807,0.54490166,4466.4,4466.3,3.7105]
[1756940887006,1.23480166,4466.4,4466.3,3.7105]
[1756940887213,1.23480166,4466.4,4466.3,0.1903]
[1756940888611,0.54490166,4466.4,4466.3,0.7006]
[1756940888912,0.3057,4466.9,4466.8,0.7006]
[1756940889106,0.6011,4466.9,4466.8,0.7006]
[1756940889310,1.34682188,4466.9,4466.8,0.4983]
[1756940889508,1.34682188,4466.9,4466.8,0.1903]
[1756940890209,1.34682188,4466.9,4466.8,0.4983]
[1756940890516,1.34682188,4466.9,4466.8,0.7006]
[1756940890717,1.23492188,4466.9,4466.8,0.7006]
[1756940892420,1.23492188,4466.9,4466.7,4.9999]
[1756940892612,1.23862188,4466.8,4466.7,4.9999]
[1756940892811,1.23862188,4466.8,4466.7,5.1944]
[1756940893721,1.23862188,4466.8,4466.7,5.6985]
[1756940895120,1.23862188,4466.8,4466.7,8.9063]
[1756940895324,0.54502188,4466.8,4466.7,8.9063]
[1756940895522,0.54502188,4467.0,4466.7,8.6048]
[1756940896009,0.54502188,4467.0,4466.9,0.3971]
[1756940896214,0.54502188,4467.0,4466.9,0.6986]
[1756940896724,1.04292188,4467.0,4466.9,0.6986]
[1756940897830,0.54502188,4467.0,4466.9,1.67324393]
[1756940898327,1.23862188,4467.0,4466.9,0.6986]
[1756940899421,1.23862188,4467.0,4466.9,5.6985]
[1756940901231,1.23862188,4467.0,4466.9,5.9235]
[1756940904235,1.23862188,4467.0,4466.9,5.6985]
[1756940904529,1.04292188,4467.0,4466.9,5.6985]
[1756940906736,1.04292188,4467.0,4466.9,5.9235]
[1756940910039,1.36142188,4467.0,4466.9,5.1944]
[1756940910339,2.55993581,4467.0,4466.9,4.9999]
[1756940910839,1.23862188,4467.0,4466.9,5.6985]
[1756940911238,0.54502188,4467.0,4466.9,5.6985]
[1756940911434,0.54502188,4467.0,4466.9,5.9235]
[1756940913336,0.3069,4467.3,4467.0,0.3015]
[1756940913537,0.4979,4467.3,4467.2,0.6986]
[1756940913834,1.04316961,4467.3,4467.2,0.6986]
[1756940915140,1.20629408,4468.0,4467.2,4.5039]
[1756940915441,1.59993883,4468.9,4467.9,4.18244393]
[1756940915644,0.3138,4468.5,4468.0,41.031]
[1756940915837,0.1228,4469.5,4468.2,0.97464393]
[1756940916041,0.3069,4469.4,4468.5,0.40267]
[1756940916241,0.3069,4469.4,4468.6,0.51968006]
[1756940916434,0.3069,4469.4,4468.7,0.51968006]
[1756940916641,0.3069,4469.4,4468.8,0.28868006]
[1756940916945,0.3069,4469.4,4469.3,3.2078]
[1756940917139,0.3069,4469.4,4469.3,4.41344393]
[1756940919442,0.3069,4469.4,4469.3,4.24982572]
[1756940924551,0.2893,4471.4,4469.5,1.00646]
[1756940924756,0.1217,4472.0,4471.3,4.01882572]
[1756940924955,0.2893,4472.9,4471.9,0.81102572]
[1756940925158,0.2893,4472.9,4472.8,1.62205144]
[1756940925448,0.2893,4473.2,4472.8,1.04202572]
[1756940925653,0.1217,4473.5,4472.8,1.04202572]
[1756940925843,0.411,4473.0,4472.8,1.04202572]
[1756940926244,0.411,4473.0,4472.9,3.2078]
[1756940927048,0.411,4473.0,4472.9,3.7335]
[1756940927449,0.618,4473.0,4472.9,3.7335]
[1756940929950,0.807,4473.0,4472.9,3.7335]
[1756940930652,0.807,4473.0,4472.9,0.5257]
[1756940930860,0.807,4473.0,4472.9,0.7567]
[1756940931658,0.807,4473.0,4472.9,0.5257]
[1756940931848,0.807,4473.0,4472.8,1.04202572]
[1756940932061,0.6853,4472.9,4472.8,1.04202572]
[1756940933259,0.2893,4472.9,4472.8,0.231]
[1756940933459,0.2893,4472.9,4472.8,1.04202572]
[1756940933856,0.4963,4472.9,4472.8,1.04202572]
[1756940934567,0.4963,4472.9,4472.8,0.231]
[1756940934757,0.6853,4472.9,4472.8,1.04202572]
[1756940934953,0.6853,4472.9,4472.8,0.81102572]
[1756940935162,0.6853,4472.9,4472.8,1.04202572]
[1756940937854,0.6853,4472.9,4472.8,0.81102572]
[1756940938068,0.6853,4472.9,4472.8,1.04202572]
[1756940938267,0.4963,4472.9,4472.8,1.04202572]
[1756940938660,0.6853,4472.9,4472.8,1.04202572]
[1756940946659,0.2893,4472.9,4472.8,1.04202572]
[1756940947567,0.2893,4472.9,4472.8,1.04102572]
[1756940950572,0.4963,4472.9,4472.8,1.04102572]
[1756940950772,0.6853,4472.9,4472.8,1.04102572]
[1756940951076,0.6853,4472.9,4472.8,0.81102572]
[1756940951280,1.21339529,4472.9,4472.8,1.04102572]
[1756940951583,1.21339529,4472.9,4472.8,1.32531724]
[1756940951770,1.21339529,4472.9,4472.8,1.04102572]
[1756940952271,1.21339529,4472.9,4472.8,1.32564365]
[1756940953174,1.21339529,4472.9,4472.8,1.04102572]
[1756940955578,1.21339529,4472.9,4472.8,0.23]
[1756940955879,1.21339529,4472.9,4472.8,1.04102572]
[1756940957773,0.6806,4472.7,4472.6,4.0413]
[1756940957974,1.20869529,4472.7,4472.6,4.0413]
[1756940960380,1.88741111,4472.7,4472.6,4.0413]
[1756940960681,2.4155064,4472.7,4472.6,4.0413]
[1756940960979,10.65791212,4472.7,4472.6,3.92933039]
[1756940961179,0.6806,4470.9,4470.8,3.2078]
[1756940961375,0.4905,4469.9,4469.8,0.23]
[1756940961574,1.20869529,4469.9,4469.8,0.81102572]